lending/lending_fUSD_20260110
["ID","MTS","AMOUNT","RATE_DAILY","PERIOD"]
[401170788,1768012241465,-745.28774652,0.000159,2]
[401170789,1768012241477,-745.28774652,0.000159,2]
[401170790,1768012241488,-745.28774652,0.000159,2]
[401170791,1768012241499,-745.28774652,0.000159,2]
[401170792,1768012241511,-336.3803781,0.00015938,2]
[401170793,1768012241522,-150.0,0.00015941,2]
[401170794,1768012241533,-420.0,0.00015941,2]
[401170795,1768012241544,-184.89547063,0.00015948,2]
[401170796,1768012241556,-393.26677801,0.0001599,2]
[401170797,1768012241567,-720887.08209813,0.00016,4]
[401170798,1768012241579,-1680.0,0.00016014,2]
[401170799,1768012241589,-838.51,0.00016028,2]
[401170800,1768012241601,-661.7,0.00016082,2]
[401170801,1768012241612,-482.91,0.00016082,2]
[401170802,1768012241623,-482.91,0.00016082,2]
[401170803,1768012241634,-661.7,0.00016082,2]
[401170804,1768012241644,-6234.1396233,0.00016099,2]
[401170805,1768012241656,-8123.36275247,0.00016099,2]
[401170806,1768012241666,-1000.0,0.0001616,2]
[401170807,1768012241678,-1000.0,0.00016171,2]
[401170808,1768012241688,-150.0,0.000162,2]
[401170809,1768012241700,-150.0,0.000162,2]
[401170810,1768012241711,-150.0,0.000162,2]
[401170811,1768012241722,-150.0,0.000162,2]
[401170812,1768012241733,-150.0,0.000162,2]
[401170813,1768012241744,-150.0,0.000162,2]
[401170814,1768012241754,-150.0,0.000162,2]
[401170815,1768012241766,-150.0,0.000162,2]
[401170816,1768012241776,-150.0,0.000162,2]
[401170817,1768012241788,-150.0,0.000162,2]
[401170818,1768012241798,-150.0,0.000162,2]
[401170819,1768012241810,-150.0,0.000162,2]
[401170820,1768012241820,-150.0,0.000162,2]
[401170821,1768012241832,-150.25923791,0.000162,2]
[401170822,1768012241842,-150.0,0.000162,2]
[401170823,1768012241853,-150.0,0.000162,2]
[401170824,1768012241865,-150.0,0.000162,2]
[401170825,1768012241876,-5000.00338372,0.000162,5]
[401170826,1768012241887,-150.0,0.00016219,2]
[401170827,1768012241898,-150.0,0.0001622,2]
[401170828,1768012241909,-150.0,0.00016222,2]
[401170829,1768012241920,-150.0,0.00016223,2]
[401170830,1768012241931,-150.0,0.00016225,2]
[401170831,1768012241942,-150.0,0.00016227,2]
[401170832,1768012241952,-150.0,0.00016228,2]
[401170833,1768012242453,-150.0,0.00016237,2]
[401170834,1768012242495,-150.0,0.00016241,2]
[401170835,1768012242517,-150.0,0.00016244,2]
[401170836,1768012242531,-150.0,0.00016246,2]
[401170837,1768012242541,-150.0,0.00016251,2]
[401170838,1768012242549,-150.0,0.00016254,2]
[401170839,1768012242559,-150.0,0.00016255,2]
[401170840,1768012242568,-150.0,0.00016256,2]
[401170841,1768012242578,-150.0,0.00016261,2]
[401170842,1768012242587,-150.0,0.00016264,2]
[401170843,1768012242596,-150.0,0.00016267,2]
[401170844,1768012242605,-150.0,0.00016268,2]
[401170845,1768012242615,-613.94531007,0.00016273,2]
[401170846,1768012242625,-500.0,0.00016273,2]
[401170847,1768012242634,-150.0,0.00016275,2]
[401170848,1768012242643,-150.0,0.00016276,2]
[401170849,1768012242652,-387.07224839,0.00016279,2]
[401170850,1768012242661,-150.0,0.00016281,2]
[401170851,1768012242670,-150.0,0.00016282,2]
[401170852,1768012242680,-150.0,0.00016283,2]
[401170853,1768012242689,-150.0,0.00016289,2]
[401170854,1768012242699,-150.0,0.0001629,2]
[401170855,1768012242708,-150.0,0.00016291,2]
[401170856,1768012242718,-150.0,0.00016294,2]
[401170857,1768012242728,-162.0,0.000163,2]
[401170858,1768012242738,-162.0,0.000163,2]
[401170859,1768012242747,-171.2,0.000163,2]
[401170860,1768012242757,-150.0,0.00016301,2]
[401170861,1768012242766,-838.51,0.00016302,2]
[401170862,1768012242775,-150.0,0.00016302,2]
[401170863,1768012242784,-150.0,0.00016307,2]
[401170864,1768012242794,-150.0,0.00016311,2]
[401170865,1768012242803,-150.0,0.00016311,2]
[401170866,1768012242812,-150.0,0.00016312,2]
[401170867,1768012242822,-150.0,0.00016314,2]
[401170868,1768012242831,-150.0,0.00016323,2]
[401170869,1768012242841,-150.0,0.00016327,2]
[401170870,1768012242851,-150.0,0.00016329,2]
[401170871,1768012242860,-150.0,0.00016329,2]
[401170872,1768012242870,-150.0,0.00016331,2]
[401170873,1768012242880,-150.0,0.00016333,2]
[401170874,1768012242889,-150.0,0.00016334,2]
[401170875,1768012242898,-150.0,0.00016337,2]
[401170876,1768012242908,-150.0,0.00016338,2]
[401170878,1768012242917,-150.0,0.00016343,2]
[401170879,1768012242926,-150.0,0.0001635,2]
[401170881,1768012242936,-150.0,0.00016352,2]
[401170883,1768012242945,-150.0,0.00016356,2]
[401170885,1768012242955,-1789.38,0.00016356,2]
[401170887,1768012242964,-1112.8,0.00016356,2]
[401170889,1768012242973,-150.0,0.00016359,2]
[401170891,1768012242983,-150.0,0.00016361,2]
[401170893,1768012242993,-150.0,0.00016364,2]
[401170894,1768012243002,-150.0,0.00016366,2]
[401170895,1768012243011,-150.0,0.00016369,2]
[401170896,1768012243021,-150.0,0.00016377,2]
[401170897,1768012243030,-150.0,0.00016378,2]
[401170898,1768012243039,-150.0,0.0001638,2]
[401170899,1768012243049,-150.0,0.00016382,2]
[401170900,1768012243061,-150.0,0.00016384,2]
[401170901,1768012243071,-150.0,0.00016387,2]
[401170902,1768012243080,-150.0,0.00016388,2]
[401170903,1768012243089,-150.0,0.00016393,2]
[401170904,1768012243099,-150.0,0.00016394,2]
[401170905,1768012243109,-150.0,0.000164,2]
[401170906,1768012243118,-1000.0,0.00016401,2]
[401170907,1768012243127,-150.0,0.00016403,2]
[401170908,1768012243137,-150.0,0.00016405,2]
[401170909,1768012243147,-150.0,0.00016405,2]
[401170910,1768012243156,-150.0,0.00016406,2]
[401170911,1768012243165,-150.0,0.00016415,2]
[401170912,1768012243175,-150.0,0.00016422,2]
[401170913,1768012243184,-150.0,0.00016422,2]
[401170914,1768012243193,-150.0,0.00016425,2]
[401170915,1768012243202,-150.0,0.00016425,2]
[401170916,1768012243212,-150.0,0.00016425,2]
[401170917,1768012243221,-150.0,0.00016428,2]
[401170918,1768012243231,-150.0,0.00016428,2]
[401170919,1768012243241,-500.0,0.00016438,2]
[401170920,1768012243251,-500.0,0.00016438,2]
[401170921,1768012243260,-500.0,0.00016438,2]
[401170922,1768012243269,-500.0,0.00016438,2]
[401170923,1768012243278,-500.0,0.00016438,2]
[401170924,1768012243287,-500.0,0.00016438,2]
[401170925,1768012243296,-500.0,0.00016438,2]
[401170926,1768012243306,-500.0,0.00016438,2]
[401170927,1768012243315,-500.0,0.00016438,2]
[401170928,1768012243325,-395.12169618,0.00016438,2]
[401170929,1768012243335,-500.0,0.00016438,2]
[401170930,1768012243345,-500.0,0.00016438,2]
[401170931,1768012243355,-500.0,0.00016438,2]
[401170932,1768012243364,-500.0,0.00016438,2]
[401170933,1768012243374,-289.52119706,0.00016438,2]
[401170934,1768012243383,-600.0,0.00016438,2]
[401170935,1768012243393,-10290.07,0.00016438,2]
[401170936,1768012243402,-567.0,0.00016438,2]
[401170937,1768012243412,-500.0,0.00016438,2]
[401170938,1768012243421,-889.0,0.00016438,2]
[401170939,1768012243431,-150.0,0.00016442,2]
[401170940,1768012243440,-150.0,0.00016444,2]
[401170941,1768012243450,-150.0,0.00016444,2]
[401170942,1768012243460,-150.0,0.00016445,2]
[401170943,1768012243469,-150.0,0.00016449,2]
[401170944,1768012243479,-150.0,0.00016451,2]
[401170945,1768012243489,-150.0,0.00016454,2]
[401170947,1768012243498,-150.0,0.00016457,2]
[401170949,1768012243507,-150.0,0.00016457,2]
[401170951,1768012243517,-6234.1396233,0.0001646,2]
[401170952,1768012243526,-8123.36275247,0.0001646,2]
[401170953,1768012243536,-150.0,0.00016462,2]
[401170954,1768012243546,-153.66,0.00016463,2]
[401170955,1768012243555,-150.0,0.00016466,2]
[401170956,1768012243564,-150.0,0.00016467,2]
[401170957,1768012243574,-150.0,0.00016469,2]
[401170958,1768012243583,-150.0,0.0001647,2]
[401170959,1768012243592,-150.07,0.00016473,2]
[401170960,1768012243602,-150.0,0.00016473,2]
[401170961,1768012243611,-150.0,0.00016477,2]
[401170962,1768012243620,-150.0,0.00016479,2]
[401170963,1768012243630,-483.49,0.0001648,2]
[401170964,1768012243640,-150.0,0.00016481,2]
[401170965,1768012243649,-150.0,0.00016486,2]
[401170966,1768012243659,-150.0,0.00016489,2]
[401170967,1768012243668,-150.0,0.00016496,2]
[401170968,1768012243678,-150.0,0.00016496,2]
[401170969,1768012243687,-150.0,0.000165,2]
[401170970,1768012243696,-150.0,0.00016504,2]
[401170971,1768012243705,-150.0,0.00016505,2]
[401170972,1768012243714,-150.0,0.00016507,2]
[401170973,1768012243724,-150.0,0.00016511,2]
[401170974,1768012243733,-150.0,0.00016519,2]
[401170975,1768012243743,-150.0,0.00016519,2]
[401170976,1768012243752,-150.0,0.00016521,2]
[401170977,1768012243761,-150.0,0.00016522,2]
[401170978,1768012243771,-150.0,0.00016527,2]
[401170979,1768012243780,-150.0,0.0001653,2]
[401170980,1768012243790,-150.0,0.00016532,2]
[401170981,1768012243800,-150.0,0.00016533,2]
[401170982,1768012243809,-240.09891858,0.00016534,2]
[401170983,1768012243819,-150.0,0.00016537,2]
[401170984,1768012243828,-150.0,0.00016542,2]
[401170985,1768012243837,-150.0,0.00016548,2]
[401170986,1768012243847,-150.0,0.00016549,2]
[401170987,1768012243856,-150.0,0.00016555,2]
[401170988,1768012243865,-150.0,0.00016556,2]
[401170989,1768012243874,-150.0,0.00016556,2]
[401170990,1768012243884,-150.0,0.0001656,2]
[401170991,1768012243893,-150.0,0.0001656,2]
[401170992,1768012243902,-150.0,0.0001656,2]
[401170993,1768012243911,-150.0,0.0001656,2]
[401170994,1768012243921,-1000.0,0.00016562,2]
[401170995,1768012243931,-150.0,0.00016565,2]
[401170996,1768012243940,-150.0,0.00016568,2]
[401170997,1768012243949,-150.0,0.00016575,2]
[401170998,1768012243958,-838.53347755,0.00016576,2]
[401170999,1768012243967,-150.0,0.00016576,2]
[401171000,1768012243977,-150.0,0.00016578,2]
[401171001,1768012243986,-150.0,0.0001658,2]
[401171002,1768012243996,-150.0,0.00016586,2]
[401171003,1768012244005,-150.0,0.00016586,2]
[401171004,1768012244015,-150.0,0.00016587,2]
[401171005,1768012244024,-150.0,0.00016588,2]
[401171006,1768012244034,-150.0,0.00016589,2]
[401171007,1768012244043,-150.0,0.00016594,2]
[401171008,1768012244052,-1000.0,0.00016598,2]
[401171009,1768012244065,-153.66,0.00016598,2]
[401171010,1768012244074,-150.0,0.000166,2]
[401171011,1768012244083,-150.0,0.00016603,2]
[401171012,1768012244092,-150.0,0.00016606,2]
[401171014,1768012244102,-150.0,0.00016609,2]
[401171015,1768012244112,-150.0,0.0001661,2]
[401171016,1768012244121,-150.0,0.00016612,2]
[401171017,1768012244131,-150.07,0.00016613,2]
[401171018,1768012244140,-150.0,0.00016615,2]
[401171019,1768012244150,-150.0,0.00016622,2]
[401171020,1768012244159,-150.0,0.0001663,2]
[401171021,1768012244169,-150.0,0.0001663,2]
[401171022,1768012244179,-150.0,0.00016631,2]
[401171023,1768012244189,-150.0,0.00016631,2]
[401171024,1768012244199,-150.0,0.00016633,2]
[401171025,1768012244209,-150.0,0.00016643,2]
[401171026,1768012244219,-150.0,0.00016644,2]
[401171027,1768012244228,-150.0,0.0001665,2]
[401171028,1768012244238,-150.0,0.0001665,2]
[401171029,1768012244248,-150.0,0.0001665,2]
[401171030,1768012244257,-150.0,0.0001665,2]
[401171031,1768012244267,-150.0,0.0001665,2]
[401171032,1768012244276,-150.0,0.00016656,2]
[401171033,1768012244286,-150.0,0.00016656,2]
[401171034,1768012244295,-150.0,0.00016657,2]
[401171035,1768012244305,-429.31,0.00016667,2]
[401171036,1768012244314,-150.0,0.00016667,2]
[401171037,1768012244323,-150.0,0.00016669,2]
[401171038,1768012244332,-500.0,0.0001667,2]
[401171039,1768012244342,-150.0,0.0001667,2]
[401171040,1768012244352,-150.0,0.00016671,2]
[401171041,1768012244362,-150.0,0.00016678,2]
[401171042,1768012244372,-150.0,0.00016682,2]
[401171043,1768012244381,-150.0,0.00016684,2]
[401171044,1768012244391,-150.0,0.00016687,2]
[401171045,1768012244401,-150.0,0.00016689,2]
[401171046,1768012244411,-150.0,0.00016691,2]
[401171047,1768012244420,-150.0,0.00016698,2]
[401171048,1768012244430,-150.0,0.00016701,2]
[401171049,1768012244439,-150.0,0.00016706,2]
[401171050,1768012244448,-150.0,0.00016707,2]
[401171051,1768012244458,-150.0,0.0001671,2]
[401171052,1768012244467,-150.0,0.00016711,2]
[401171053,1768012244476,-150.0,0.00016711,2]
[401171054,1768012244486,-160.0,0.00016712,2]
[401171055,1768012244495,-150.0,0.00016714,2]
[401171056,1768012244504,-150.0,0.00016714,2]
[401171057,1768012244514,-150.0,0.00016724,2]
[401171058,1768012244524,-150.0,0.00016725,2]
[401171059,1768012244533,-150.0,0.00016726,2]
[401171060,1768012244543,-150.0,0.00016732,2]
[401171061,1768012244552,-150.0,0.00016732,2]
[401171062,1768012244562,-150.0,0.00016733,2]
[401171063,1768012244571,-150.0,0.00016737,2]
[401171064,1768012244581,-150.0,0.0001674,2]
[401171065,1768012244591,-150.0,0.00016744,2]
[401171066,1768012244601,-1000.0,0.00016746,2]
[401171067,1768012244611,-150.0,0.00016747,2]
[401171068,1768012244620,-150.0,0.00016752,2]
[401171069,1768012244630,-150.0,0.00016754,2]
[401171070,1768012244639,-150.0,0.00016756,2]
[401171071,1768012244648,-150.0,0.00016758,2]
[401171072,1768012244658,-150.0,0.00016762,2]
[401171073,1768012244667,-150.0,0.00016764,2]
[401171074,1768012244676,-150.0,0.0001677,2]
[401171075,1768012244685,-245.8575258,0.00016771,2]
[401171076,1768012244694,-150.0,0.00016773,2]
[401171077,1768012244703,-150.0,0.00016778,2]
[401171078,1768012244713,-150.0,0.00016779,2]
[401171079,1768012244723,-150.0,0.00016781,2]
[401171080,1768012244732,-150.0,0.00016782,2]
[401171081,1768012244741,-150.0,0.00016783,2]
[401171082,1768012244751,-150.0,0.00016791,2]
[401171083,1768012244760,-150.0,0.00016792,2]
[401171084,1768012244770,-150.0,0.00016793,2]
[401171085,1768012244780,-150.0,0.000168,2]
[401171086,1768012244789,-150.0,0.000168,2]
[401171087,1768012244799,-150.0,0.00016808,2]
[401171088,1768012244808,-150.0,0.00016809,2]
[401171089,1768012244818,-150.0,0.00016814,2]
[401171090,1768012244827,-150.0,0.00016815,2]
[401171092,1768012244836,-150.0,0.00016818,2]
[401171094,1768012244845,-150.0,0.00016819,2]
[401171096,1768012244855,-387.07224839,0.00016819,2]
[401171097,1768012244865,-6234.1396233,0.0001682,2]
[401171098,1768012244874,-8123.36275247,0.0001682,2]
[401171099,1768012244883,-1000.0,0.00016821,2]
[401171100,1768012244892,-150.0,0.00016822,2]
[401171101,1768012244901,-569.44,0.00016826,2]
[401171102,1768012244911,-244.74,0.00016826,2]
[401171103,1768012244920,-1022.38017975,0.00016828,2]
[401171104,1768012244929,-150.0,0.0001683,2]
[401171105,1768012244939,-150.0,0.00016834,2]
[401171106,1768012244948,-150.0,0.00016834,2]
[401171107,1768012244958,-150.0,0.00016837,2]
[401171108,1768012244968,-150.0,0.00016837,2]
[401171109,1768012244977,-150.0,0.00016838,2]
[401171110,1768012244986,-150.0,0.00016843,2]
[401171111,1768012244996,-150.0,0.00016843,2]
[401171112,1768012245006,-150.0,0.00016844,2]
[401171113,1768012245015,-150.0,0.00016845,2]
[401171114,1768012245024,-1000.0,0.00016845,2]
[401171115,1768012245034,-150.0,0.00016855,2]
[401171116,1768012245044,-150.0,0.00016856,2]
[401171117,1768012245053,-150.0,0.00016859,2]
[401171118,1768012245066,-150.0,0.00016861,2]
[401171119,1768012245075,-150.0,0.00016865,2]
[401171120,1768012245086,-150.0,0.00016867,2]
[401171121,1768012245095,-659.3281205,0.00016869,2]
[401171122,1768012245105,-150.0,0.00016872,2]
[401171123,1768012245115,-150.0,0.00016875,2]
[401171124,1768012245124,-150.0,0.00016875,2]
[401171125,1768012245134,-150.0,0.00016875,2]
[401171126,1768012245144,-150.0,0.00016884,2]
[401171127,1768012245153,-150.0,0.00016885,2]
[401171128,1768012245163,-150.0,0.00016889,2]
[401171129,1768012245172,-150.0,0.00016892,2]
[401171130,1768012245182,-150.0,0.00016894,2]
[401171131,1768012245191,-150.0,0.00016895,2]
[401171132,1768012245201,-150.0,0.00016899,2]
[401171133,1768012245211,-162.0,0.000169,2]
[401171134,1768012245220,-162.0,0.000169,2]
[401171135,1768012245230,-162.0,0.000169,2]
[401171136,1768012245239,-162.0,0.000169,2]
[401171137,1768012245249,-150.0,0.00016904,2]
[401171138,1768012245259,-150.0,0.00016904,2]
[401171139,1768012245269,-150.0,0.00016904,2]
[401171140,1768012245279,-150.0,0.00016906,2]
[401171141,1768012245288,-150.0,0.00016907,2]
[401171142,1768012245298,-150.0,0.0001691,2]
[401171143,1768012245308,-150.0,0.00016911,2]
[401171144,1768012245319,-150.0,0.00016912,2]
[401171145,1768012245328,-150.0,0.00016916,2]
[401171146,1768012245338,-336.38037809,0.00016919,2]
[401171147,1768012245347,-150.0,0.0001692,2]
[401171148,1768012245357,-150.0,0.0001692,2]
[401171149,1768012245366,-150.0,0.0001692,2]
[401171150,1768012245375,-150.0,0.0001692,2]
[401171151,1768012245384,-150.0,0.00016925,2]
[401171152,1768012245394,-150.0,0.00016929,2]
[401171153,1768012245403,-409.0,0.00016931,2]
[401171154,1768012245414,-150.0,0.00016931,2]
[401171155,1768012245423,-150.0,0.00016933,2]
[401171156,1768012245432,-150.0,0.00016935,2]
[401171157,1768012245442,-150.0,0.00016936,2]
[401171158,1768012245451,-150.0,0.00016948,2]
[401171159,1768012245461,-150.0,0.0001695,2]
[401171160,1768012245470,-150.0,0.00016952,2]
[401171161,1768012245480,-150.0,0.00016952,2]
[401171162,1768012245490,-150.0,0.00016956,2]
[401171163,1768012245500,-409.0,0.00016957,2]
[401171164,1768012245510,-150.0,0.00016957,2]
[401171165,1768012245520,-150.0,0.00016961,2]
[401171166,1768012245530,-150.0,0.00016969,2]
[401171167,1768012245539,-150.0,0.00016971,2]
[401171168,1768012245549,-150.0,0.00016971,2]
[401171169,1768012245559,-150.0,0.00016975,2]
[401171170,1768012245569,-150.0,0.00016975,2]
[401171171,1768012245579,-150.0,0.00016977,2]
[401171172,1768012245589,-150.0,0.00016978,2]
[401171173,1768012245598,-150.0,0.00016979,2]
[401171174,1768012245608,-150.0,0.00016986,2]
[401171175,1768012245617,-600.0,0.00016986,2]
[401171176,1768012245629,-150.0,0.00016987,2]
[401171177,1768012245639,-150.0,0.00016997,2]
[401171178,1768012245648,-150.0,0.00016998,2]
[401171179,1768012245658,-150.0,0.00017,2]
[401171180,1768012245668,-210.20353926,0.00017,2]
[401171181,1768012245678,-150.0,0.00017003,2]
[401171182,1768012245688,-1000.0,0.00017003,2]
[401171183,1768012245697,-150.0,0.00017006,2]
[401171184,1768012245707,-150.0,0.00017006,2]
[401171185,1768012245716,-409.0,0.00017008,2]
[401171186,1768012245726,-150.0,0.0001701,2]
[401171187,1768012245735,-150.0,0.00017011,2]
[401171188,1768012245744,-150.0,0.00017018,2]
[401171189,1768012245753,-150.0,0.0001702,2]
[401171190,1768012245763,-150.0,0.00017022,2]
[401171191,1768012245773,-150.0,0.00017025,2]
[401171192,1768012245783,-150.0,0.00017031,2]
[401171193,1768012245793,-150.0,0.00017033,2]
[401171194,1768012245809,-150.0,0.00017036,2]
[401171195,1768012245827,-150.0,0.00017037,2]
[401171196,1768012245836,-150.0,0.00017039,2]
[401171197,1768012245846,-464.02,0.00017041,2]
[401171198,1768012245856,-150.0,0.00017043,2]
[401171199,1768012245865,-150.0,0.00017044,2]
[401171200,1768012245876,-150.0,0.00017044,2]
[401171201,1768012245886,-150.0,0.00017058,2]
[401171202,1768012245895,-150.0,0.00017059,2]
[401171203,1768012245904,-150.0,0.0001706,2]
[401171204,1768012245915,-150.0,0.00017062,2]
[401171205,1768012245926,-150.0,0.00017063,2]
[401171206,1768012245936,-150.0,0.00017066,2]
[401171207,1768012245945,-150.0,0.00017067,2]
[401171208,1768012245955,-150.0,0.0001708,2]
[401171209,1768012245964,-150.0,0.00017081,2]
[401171210,1768012245975,-150.0,0.00017086,2]
[401171211,1768012245985,-150.0,0.00017087,2]
[401171213,1768012245994,-150.0,0.00017087,2]
[401171214,1768012246004,-150.0,0.00017089,2]
[401171215,1768012246013,-150.0,0.00017089,2]
[401171216,1768012246023,-322.6107,0.00017099,2]
[401171217,1768012246033,-290.47234924,0.00017099,2]
[401171218,1768012246042,-2000.0,0.00017099,2]
[401171219,1768012246052,-500.0,0.00017099,2]
[401171220,1768012246281,-805.55508344,0.00017099,2]
[401171221,1768012246291,-553.64373807,0.00017099,2]
[401171222,1768012246301,-2000.0,0.00017099,2]
[401171223,1768012246311,-500.0,0.00017099,2]
[401171224,1768012246320,-400.56648216,0.00017099,2]
[401171225,1768012246330,-2000.0,0.00017099,2]
[401171226,1768012246339,-500.0,0.00017099,2]
[401171227,1768012246349,-2000.0,0.00017099,2]
[401171228,1768012246358,-500.0,0.00017099,2]
[401171229,1768012246368,-2000.0,0.00017099,2]
[401171231,1768012246377,-500.0,0.00017099,2]
[401171232,1768012246387,-2000.0,0.00017099,2]
[401171233,1768012246396,-500.0,0.00017099,2]
[401171234,1768012246406,-2000.0,0.00017099,2]
[401171235,1768012246416,-500.0,0.00017099,2]
[401171236,1768012246426,-2000.0,0.00017099,2]
[401171238,1768012246435,-500.0,0.00017099,2]
[401171239,1768012246445,-525.94323817,0.00017099,2]
[401171240,1768012246455,-500.0,0.00017099,2]
[401171241,1768012246464,-500.0,0.00017099,2]
[401171242,1768012246474,-500.0,0.00017099,2]
[401171243,1768012246483,-500.0,0.00017099,2]
[401171244,1768012246492,-1000.0,0.00017099,2]
[401171245,1768012246502,-500.0,0.00017099,2]
[401171246,1768012246511,-1000.0,0.00017099,2]
[401171247,1768012246521,-500.0,0.00017099,2]
[401171248,1768012246530,-1000.0,0.00017099,2]
[401171249,1768012246539,-500.0,0.00017099,2]
[401171250,1768012246549,-1000.0,0.00017099,2]
[401171251,1768012246559,-500.0,0.00017099,2]
[401171252,1768012246568,-1000.0,0.00017099,2]
[401171253,1768012246578,-500.0,0.00017099,2]
[401171254,1768012246587,-1000.0,0.00017099,2]
[401171256,1768012246596,-500.0,0.00017099,2]
[401171257,1768012246605,-1000.0,0.00017099,2]
[401171258,1768012246615,-500.0,0.00017099,2]
[401171259,1768012246624,-1000.0,0.00017099,2]
[401171260,1768012246633,-500.0,0.00017099,2]
[401171261,1768012246643,-1000.0,0.00017099,2]
[401171262,1768012246653,-500.0,0.00017099,2]
[401171263,1768012246662,-1000.0,0.00017099,2]
[401171264,1768012246672,-500.0,0.00017099,2]
[401171265,1768012246681,-1000.0,0.00017099,2]
[401171266,1768012246691,-500.0,0.00017099,2]
[401171267,1768012246700,-1000.0,0.00017099,2]
[401171268,1768012246709,-500.0,0.00017099,2]
[401171269,1768012246719,-250.0,0.00017099,2]
[401171270,1768012246728,-250.0,0.00017099,2]
[401171271,1768012246738,-250.0,0.00017099,2]
[401171272,1768012246747,-250.0,0.00017099,2]
[401171273,1768012246757,-250.0,0.00017099,2]
[401171274,1768012246766,-250.0,0.00017099,2]
[401171275,1768012246776,-250.0,0.00017099,2]
[401171276,1768012246785,-250.0,0.00017099,2]
[401171277,1768012246795,-250.0,0.00017099,2]
[401171278,1768012246804,-250.0,0.00017099,2]
[401171279,1768012246814,-250.0,0.00017099,2]
[401171280,1768012246823,-250.0,0.00017099,2]
[401171281,1768012246833,-150.0,0.000171,2]
[401171282,1768012246843,-150.0,0.000171,2]
[401171283,1768012246852,-150.0,0.000171,2]
[401171284,1768012246861,-150.0,0.000171,2]
[401171285,1768012246871,-150.0,0.000171,2]
[401171286,1768012246880,-150.0,0.000171,2]
[401171287,1768012246889,-150.0,0.000171,2]
[401171288,1768012246899,-150.0,0.000171,2]
[401171289,1768012246908,-150.0,0.000171,2]
[401171290,1768012246918,-1069.8949683,0.000171,2]
[401171291,1768012246927,-637.73456929,0.00017111,2]
[401171292,1768012246937,-150.0,0.00017111,2]
[401171293,1768012246947,-150.0,0.00017111,2]
[401171294,1768012246956,-150.0,0.00017113,2]
[401171295,1768012246966,-150.0,0.00017113,2]
[401171296,1768012246977,-150.0,0.00017114,2]
[401171297,1768012246986,-150.0,0.00017119,2]
[401171298,1768012246996,-150.0,0.0001712,2]
[401171299,1768012247007,-150.0,0.00017133,2]
[401171300,1768012247016,-150.0,0.00017134,2]
[401171301,1768012247026,-150.0,0.00017137,2]
[401171302,1768012247036,-150.0,0.00017138,2]
[401171303,1768012247045,-150.0,0.0001714,2]
[401171304,1768012247059,-150.0,0.00017141,2]
[401171305,1768012247068,-150.0,0.00017142,2]
[401171306,1768012247078,-150.0,0.00017156,2]